bitfinex-derivatives/quotes_ETHF0:USTF0_20260213
["timestamp","ask_amount","ask_price","bid_price","bid_amount"]
[1770968796281,5.85760299,1935.4,1934.6,5.82558616]
[1770968797695,5.85760299,1935.4,1934.5,5.82558616]
[1770968797895,5.851086,1935.2,1934.5,5.82558616]
[1770968799192,5.85760299,1935.4,1934.5,5.82558616]
[1770968800187,5.851086,1935.2,1934.5,5.82558616]
[1770968801698,5.851086,1935.2,1934.2,5.82558616]
[1770968801997,5.851086,1935.2,1934.3,5.82558616]
[1770968804500,5.85760299,1935.4,1934.3,5.82558616]
[1770968804699,5.85760299,1935.4,1934.4,5.82558616]
[1770968806914,7.31756484,1935.3,1934.7,5.82558616]
[1770968807899,5.851086,1935.2,1934.7,5.82558616]
[1770968810605,5.85760299,1935.4,1934.7,5.82558616]
[1770968813407,10.53896353,1935.3,1934.7,5.82558616]
[1770968813601,5.851086,1935.3,1934.7,5.82558616]
[1770968815807,5.85760299,1935.4,1934.7,5.82558616]
[1770968816006,4.69111045,1935.3,1934.7,5.82558616]
[1770968816206,5.85760299,1935.4,1934.7,23.01258616]
[1770968816402,4.68992558,1935.3,1934.8,5.82558616]
[1770968816604,5.85760299,1935.4,1934.8,5.82558616]
[1770968817304,0.00651699,1935.4,1934.8,5.82558616]
[1770968818708,0.00651699,1935.4,1934.8,8.13537844]
[1770968818914,0.00651699,1935.4,1934.9,5.82558616]
[1770968822507,5.57436955,1935.8,1934.9,5.82558616]
[1770968822708,5.57436955,1935.7,1934.9,5.82558616]
[1770968823514,5.57923181,1935.7,1934.9,5.82558616]
[1770968827316,5.57923181,1935.7,1935.0,5.5469481]
[1770968831117,5.57923181,1935.7,1934.8,17.209]
[1770968831118,5.57436955,1935.6,1935.1,5.5469481]
[1770968831319,5.57436955,1935.6,1935.1,5.55314107]
[1770968833930,5.57923181,1935.7,1935.2,5.5469481]
[1770968834229,5.57923181,1935.7,1935.3,5.5469481]
[1770968835928,0.00486226,1935.7,1935.3,5.5469481]
[1770968836125,49.27412565,1936.2,1935.3,5.5469481]
[1770968836318,10.26289037,1936.1,1935.5,5.5469481]
[1770968836523,5.57436955,1936.1,1935.5,5.5469481]
[1770968837119,5.57436955,1935.8,1935.2,5.5469481]
[1770968839031,0.00555746,1936.1,1935.3,5.5469481]
[1770968839229,5.57992701,1936.1,1935.3,5.5469481]
[1770968841036,5.57436955,1935.9,1935.3,5.5469481]
[1770968842735,0.00555746,1936.1,1935.3,5.5469481]
[1770968842933,5.57992701,1936.1,1935.3,5.5469481]
[1770968845039,5.57436955,1935.9,1935.3,5.5469481]
[1770968849749,5.57992701,1936.1,1935.3,5.5469481]
[1770968851451,0.00555746,1936.1,1935.3,5.5469481]
[1770968851749,0.00555746,1936.1,1935.5,5.23734363]
[1770968851951,5.70612117,1936.1,1935.5,5.23734363]
[1770968853352,5.70056371,1935.9,1935.3,5.23734363]
[1770968855747,5.40100282,1936.0,1935.3,5.23734363]
[1770968856052,5.40100282,1935.8,1935.3,5.23734363]
[1770968858649,5.40100282,1936.0,1935.3,5.23734363]
[1770968859258,10.14969071,1935.9,1935.3,5.23734363]
[1770968859457,5.40100282,1935.9,1935.3,5.23734363]
[1770968860959,5.40100282,1936.0,1935.3,5.23734363]
[1770968863259,5.40100282,1935.8,1935.3,5.23734363]
[1770968865362,5.40100282,1935.8,1935.2,5.64051115]
[1770968866960,5.40100282,1935.6,1935.1,5.64670412]
[1770968880774,5.53848616,1935.4,1934.9,5.40273699]
[1770968880989,5.53848616,1935.2,1934.6,5.40273699]
[1770968881889,5.53848616,1935.0,1934.6,5.40930741]
[1770968882091,5.53848616,1935.0,1934.6,0.00657042]
[1770968882791,5.53848616,1935.0,1934.5,5.40273699]
[1770968882982,5.53848616,1935.0,1934.3,5.40273699]
[1770968883384,5.53848616,1934.6,1934.0,5.40273699]
[1770968883681,5.54456492,1934.6,1934.0,5.40684066]
[1770968884584,0.00607876,1934.6,1934.0,6.87237842]
[1770968884785,0.00607876,1934.6,1934.1,5.40273699]
[1770968884981,5.53848616,1934.9,1934.1,5.40273699]
[1770968885186,5.53848616,1935.0,1934.3,5.40273699]
[1770968885683,1.46553776,1935.2,1934.3,5.40273699]
[1770968885887,5.53848616,1935.4,1934.5,5.40273699]
[1770968886089,5.54345415,1935.4,1934.5,5.40273699]
[1770968886390,5.54345415,1935.4,1934.7,5.40273699]
[1770968886594,0.00496799,1935.4,1934.7,5.40273699]
[1770968886889,5.54345415,1935.4,1934.7,5.40273699]
[1770968887893,5.54345415,1935.4,1934.4,5.40273699]
[1770968889491,5.53848616,1935.2,1934.4,5.40273699]
[1770968889897,5.53848616,1935.2,1934.2,5.40273699]
[1770968896401,5.53848616,1935.0,1934.2,5.40273699]
[1770968906508,5.53848616,1935.0,1934.2,5.77573699]
[1770968906805,5.53848616,1935.2,1934.2,5.77573699]
[1770968907006,10.3009729,1935.1,1934.2,5.77573699]
[1770968907207,5.53848616,1935.1,1934.2,5.77573699]
[1770968908208,5.53848616,1934.9,1934.2,5.77573699]
[1770968909011,5.53848616,1934.8,1934.3,5.40273699]
[1770968913105,5.53848616,1934.8,1934.4,5.05747945]
[1770968913306,5.34651531,1934.9,1934.5,5.05747945]
[1770968913711,3.08017807,1935.1,1934.5,5.05747945]
[1770968913912,5.34651531,1935.0,1934.5,5.05747945]
[1770968914116,10.10889667,1934.9,1934.5,5.05747945]
[1770968914313,5.34651531,1934.9,1934.5,5.05747945]
[1770968919719,5.34651531,1934.9,1934.5,5.09176604]
[1770968920920,8.3171378,1935.0,1934.5,5.09176604]
[1770968921115,4.74841354,1934.9,1934.5,5.09176604]
[1770968921316,8.3171378,1935.0,1934.5,5.09176604]
[1770968921615,3.0886965,1935.0,1934.6,5.09176604]
[1770968921822,5.2284413,1935.2,1934.9,5.09176604]
[1770968922117,5.23340929,1935.4,1934.9,6.55885532]
[1770968922317,5.2284413,1935.6,1935.2,5.09176604]
[1770968922522,5.2284413,1935.8,1935.3,5.09176604]
[1770968922823,6.69553058,1935.8,1935.2,5.09176604]
[1770968923017,1.46708928,1936.0,1935.2,5.09176604]
[1770968923018,5.2284413,1935.6,1935.2,5.09176604]
[1770968923213,5.2284413,1935.6,1935.0,45.89176604]
[1770968923214,6.69553058,1935.6,1935.0,45.89176604]
[1770968923410,5.2284413,1935.5,1935.1,5.09176604]
[1770968925419,0.00469082,1935.6,1935.3,5.09176604]
[1770968925822,5.23313212,1935.6,1935.3,5.09176604]
[1770968927924,5.2284413,1935.9,1935.6,5.09176604]
[1770968928114,5.2284413,1936.1,1935.6,5.09176604]
[1770968928322,5.2284413,1936.1,1935.6,4.59176604]
[1770968928929,5.23417377,1936.1,1935.6,4.59719105]
[1770968929130,5.2284413,1936.0,1935.6,0.00542501]
[1770968929314,5.2284413,1935.8,1935.3,5.09176604]
[1770968929521,5.2284413,1935.7,1935.2,19.22276604]
[1770968929722,5.2284413,1935.5,1935.2,14.131]
[1770968930025,5.2284413,1935.5,1935.2,19.22276604]
[1770968930222,1.46708928,1936.0,1935.3,5.09176604]
[1770968930223,5.2284413,1935.7,1935.3,5.09176604]
[1770968930625,5.2284413,1935.9,1935.4,5.09176604]
[1770968930918,6.69553058,1936.0,1935.5,5.09176604]
[1770968931126,5.2284413,1935.9,1935.5,5.09176604]
[1770968932828,5.22187079,1935.9,1935.5,5.09176604]
[1770968933030,5.23417377,1936.1,1935.6,5.09176604]
[1770968937335,5.2284413,1936.5,1935.9,6.55885532]
[1770968937534,5.2284413,1936.5,1935.9,5.09176604]
[1770968938038,5.2284413,1936.3,1935.8,5.09176604]
[1770968938236,5.23395485,1936.3,1935.8,5.09176604]
[1770968938537,5.23395485,1936.3,1935.6,6.55885532]
[1770968938736,5.2284413,1936.2,1935.7,5.09176604]
[1770968941239,5.2284413,1936.2,1935.8,5.06576208]
[1770968944851,5.21184848,1936.6,1936.0,5.06576208]
[1770968945133,4.95343848,1936.6,1936.0,5.06576208]
[1770968945739,4.95343848,1937.0,1936.0,5.06576208]
[1770968945945,4.95857066,1937.0,1936.0,5.06576208]
[1770968960154,4.95857066,1937.0,1936.1,5.06576208]
[1770968966860,4.95857066,1937.0,1936.2,5.06576208]
[1770968969262,4.95857066,1937.0,1936.4,5.06576208]
[1770968970363,4.95857066,1937.0,1936.3,5.06576208]
[1770968971157,4.87232985,1936.8,1936.3,5.06576208]
[1770968976061,4.87232985,1936.8,1936.2,4.89865969]
[1770968989768,4.87232985,1936.8,1936.3,4.89865969]
[1770968989970,4.87232985,1936.8,1936.4,4.89865969]
[1770968994780,4.97150538,1937.0,1936.4,4.89865969]
[1770968996781,4.9663732,1937.2,1936.7,4.89865969]
[1770968997072,4.9663732,1937.4,1936.5,12.63757676]
[1770968997378,4.9663732,1937.2,1936.6,4.89865969]
[1770968997580,4.9663732,1937.5,1937.0,4.89865969]
[1770968997872,46.07193883,1937.7,1937.0,4.89865969]
[1770968997873,4.71110984,1937.7,1937.4,4.89865969]
[1770968998081,4.9663732,1937.8,1937.4,4.89865969]
[1770968998472,4.9663732,1937.8,1937.2,4.89865969]
[1770968998875,4.97213949,1937.8,1937.2,4.89865969]
[1770969000282,4.9663732,1937.7,1937.0,0.00499111]
[1770969000477,5.0228859,1937.5,1937.0,4.64807016]
[1770969002080,5.0228859,1937.5,1937.0,0.00499111]
[1770969003082,5.0228859,1937.5,1937.0,4.64807016]
[1770969004989,5.0228859,1937.5,1937.0,0.00499111]
[1770969005390,5.0228859,1937.5,1936.6,4.64307905]
[1770969006287,5.0228859,1937.5,1936.6,4.64866733]
[1770969006591,5.0228859,1937.3,1936.6,0.00558828]
[1770969007092,5.0228859,1936.8,1936.1,4.64307905]
[1770969008184,5.0228859,1936.8,1936.1,4.64821833]
[1770969009486,5.0228859,1937.1,1936.2,4.64307905]
[1770969009690,5.0228859,1937.1,1936.4,4.64307905]
[1770969018695,6.48688062,1937.1,1936.4,4.64307905]
[1770969018993,5.0228859,1937.0,1936.4,4.64307905]
[1770969020096,5.0228859,1937.0,1936.2,4.64307905]
[1770969020395,1.46399472,1937.2,1936.2,4.64307905]
[1770969020396,5.0228859,1936.8,1936.2,4.64307905]
[1770969020991,5.0228859,1936.7,1936.2,4.64307905]
[1770969021396,6.48716597,1936.7,1936.1,0.00513928]
[1770969021595,5.0228859,1936.4,1935.9,4.64307905]
[1770969022397,5.0228859,1936.3,1935.7,4.64307905]
[1770969022597,5.02829919,1936.3,1935.7,4.64775954]
[1770969023004,5.02829919,1936.3,1935.8,4.64307905]
[1770969024305,0.00541329,1936.3,1936.1,4.64307905]
[1770969024498,5.0228859,1936.6,1936.3,4.64307905]
[1770969024693,0.25836,1936.9,1936.3,4.64307905]
[1770969024694,5.0228859,1936.8,1936.3,4.64307905]
[1770969025093,5.0228859,1936.8,1936.4,4.64307905]
[1770969025499,5.02750219,1936.8,1936.4,5.60735912]
[1770969026498,5.02750219,1936.8,1936.4,4.14307905]
[1770969027900,5.02750219,1936.8,1936.2,4.64307905]
[1770969028397,5.0228859,1936.7,1936.2,4.64307905]
[1770969028600,5.0228859,1936.6,1936.1,4.64307905]
[1770969029196,5.0228859,1936.6,1936.0,6.10735912]
[1770969029393,5.0228859,1936.5,1935.9,4.64307905]
[1770969029699,5.0228859,1936.5,1936.1,4.64307905]
[1770969029902,1.46889636,1936.8,1936.1,4.64307905]
[1770969030102,5.0228859,1936.7,1936.1,4.64307905]
[1770969030303,5.0228859,1936.6,1936.1,4.64307905]
[1770969036706,5.0228859,1936.6,1935.9,4.8031978]
[1770969038707,5.2812859,1936.6,1935.7,4.80787829]
[1770969041311,4.57171335,1936.4,1935.7,4.80787829]
[1770969045904,4.57171335,1936.4,1935.7,0.00468049]
[1770969048913,4.57171335,1936.4,1935.7,4.80787829]
[1770969050912,4.57171335,1936.4,1935.8,4.8031978]
[1770969052409,4.57171335,1936.4,1935.7,0.00468049]
[1770969052714,4.57171335,1936.2,1935.7,0.00468049]
[1770969053008,4.57171335,1936.2,1935.7,4.80787829]
[1770969056317,4.57171335,1936.2,1935.8,4.8031978]
[1770969057420,4.57171335,1936.4,1935.9,6.26804489]
[1770969057620,4.57171335,1936.4,1936.0,4.8031978]
[1770969058024,4.57171335,1936.4,1935.9,6.26804489]
[1770969058212,4.57171335,1936.4,1935.9,4.8031978]
[1770969059321,4.57171335,1936.5,1936.0,1.46484709]
[1770969059619,4.57171335,1936.3,1936.0,1.46484709]
[1770969059818,4.57171335,1936.3,1935.9,6.26804489]
[1770969060319,4.57171335,1936.3,1936.0,4.8031978]
[1770969068125,4.57171335,1936.3,1936.0,4.65992701]
[1770969068321,4.57171335,1936.3,1935.8,4.65992701]
[1770969068532,4.39422276,1936.2,1935.7,4.6646075]
[1770969068718,4.39422276,1936.1,1935.7,4.6646075]
[1770969069328,4.39422276,1936.1,1935.7,0.00468049]
[1770969069726,50.6116738,1936.4,1935.5,4.65992701]
[1770969069727,4.39422276,1935.9,1935.5,4.65992701]
[1770969070027,4.39422276,1935.9,1935.3,7.7376679]
[1770969070028,4.39422276,1935.8,1935.3,4.65992701]
[1770969070223,4.39422276,1935.7,1935.1,9.20251499]
[1770969070428,4.39422276,1935.6,1935.2,4.65992701]
[1770969070631,4.39422276,1935.6,1935.2,4.66457639]
[1770969070924,4.39422276,1935.6,1935.1,4.65992701]
[1770969071931,4.39422276,1935.6,1935.1,4.66658885]
[1770969073626,4.39422276,1935.6,1935.2,4.65992701]
[1770969074532,4.39422276,1935.6,1935.1,4.66658885]
[1770969076830,4.39422276,1935.8,1935.2,4.65992701]
[1770969077134,4.39422276,1935.8,1935.4,4.65992701]
[1770969077532,4.39422276,1935.8,1935.4,4.15992701]
[1770969079137,4.39422276,1936.0,1935.6,4.65992701]
[1770969079634,4.39422276,1936.0,1935.5,4.65992701]
[1770969080337,4.39422276,1936.0,1935.4,6.1247741]
[1770969081436,4.39422276,1935.8,1935.4,4.65992701]
[1770969081939,4.39422276,1935.8,1935.3,4.65992701]
[1770969083043,4.39422276,1936.0,1935.3,4.65992701]
[1770969083544,4.39422276,1936.0,1935.5,4.65992701]
[1770969084741,4.39422276,1936.1,1935.5,4.65992701]
[1770969084938,4.39422276,1936.1,1935.2,1.46572061]
[1770969084939,4.39422276,1936.1,1935.7,4.65992701]
[1770969085436,4.39422276,1936.4,1935.7,4.65992701]
[1770969093949,4.5201263,1936.3,1935.7,4.65992701]
[1770969097655,4.5201263,1936.3,1935.6,4.5218061]
[1770969097858,4.5201263,1936.3,1935.4,4.5218061]
[1770969098158,4.32540784,1936.1,1935.4,4.5218061]
[1770969099957,4.32540784,1936.1,1935.2,4.5218061]
[1770969099958,4.32540784,1936.0,1935.2,4.5218061]
[1770969100357,4.32540784,1935.8,1935.2,4.5218061]
[1770969101254,4.32540784,1935.8,1935.1,4.52846794]
[1770969101561,4.32540784,1935.6,1934.9,4.5218061]
[1770969102454,4.32540784,1935.6,1934.9,4.52621705]
[1770969103560,4.32540784,1935.7,1934.9,4.52621705]
[1770969104455,4.32540784,1935.7,1935.1,4.5218061]
[1770969104661,0.2585,1935.9,1935.1,4.5218061]
[1770969104662,4.32540784,1935.8,1935.1,4.5218061]
[1770969104853,4.32540784,1935.6,1934.9,0.00441095]
[1770969105057,4.32540784,1935.2,1934.7,4.5218061]
[1770969105257,4.32540784,1935.2,1934.5,4.5218061]
[1770969106159,4.33011248,1935.2,1934.5,4.52816888]
[1770969107856,4.33011248,1935.2,1933.8,12.259474]
[1770969107857,6.63570376,1934.8,1933.8,12.259474]
[1770969108159,4.32540784,1934.5,1933.4,4.5218061]
[1770969108861,4.32540784,1934.5,1933.4,4.52705214]
[1770969109662,4.32540784,1934.5,1933.6,4.5218061]
[1770969110858,4.32540784,1934.9,1933.6,4.5218061]
[1770969111062,4.32540784,1934.9,1933.8,4.5218061]
[1770969117566,4.32540784,1934.9,1933.9,4.5218061]
[1770969117762,4.32540784,1935.1,1933.9,4.5218061]
[1770969117962,4.32540784,1935.1,1934.1,4.5218061]
[1770969118272,4.32540784,1935.1,1934.3,4.5218061]
[1770969120368,4.33011248,1935.2,1934.3,4.5218061]
[1770969120563,0.00470464,1935.2,1934.3,4.5218061]
[1770969120761,4.26969657,1935.2,1934.3,4.5218061]
[1770969120956,4.26969657,1935.2,1934.4,4.14089436]
[1770969121467,4.26499193,1935.6,1934.5,4.14089436]
[1770969121668,4.26499193,1935.6,1934.7,4.14089436]
[1770969122660,4.27167063,1935.6,1934.7,4.14089436]
[1770969126268,0.0066787,1935.6,1934.9,4.14089436]
[1770969126468,0.0066787,1935.6,1934.9,4.14499987]
[1770969126865,4.26499193,1936.0,1934.9,4.51799987]
[1770969127168,4.26499193,1936.0,1935.0,4.14089436]
[1770969127767,3.33036313,1936.5,1935.0,4.14089436]
[1770969127961,4.26499193,1936.3,1935.0,4.14089436]
[1770969128358,4.26499193,1936.3,1935.2,4.14089436]
[1770969134174,4.26499193,1936.3,1935.2,4.51389436]
[1770969136976,4.26499193,1936.3,1935.3,4.14089436]
[1770969137477,4.26499193,1936.4,1935.3,4.39946436]
[1770969138578,0.00504349,1936.5,1935.6,4.39942436]
[1770969138781,0.00504349,1936.5,1935.8,4.14089436]
[1770969140780,4.26499193,1936.7,1935.8,4.14089436]
[1770969141081,4.26499193,1936.7,1935.9,4.14089436]
[1770969141678,4.27020562,1936.7,1935.9,4.14089436]
[1770969142176,4.26499193,1937.0,1935.9,4.14089436]
[1770969143276,4.52757618,1937.0,1935.9,4.14089436]
[1770969144977,4.52757618,1937.0,1936.2,4.14089436]
[1770969145184,4.26922618,1937.0,1936.2,4.14089436]
[1770969148078,4.26922618,1937.0,1936.1,4.14089436]
[1770969148282,4.26499193,1936.8,1935.9,4.14089436]
[1770969161300,4.49885578,1936.6,1935.9,4.14089436]
[1770969161498,4.49885578,1936.6,1936.0,4.37741608]
[1770969161803,4.49885578,1936.8,1936.0,4.37741608]
[1770969162401,4.49885578,1936.9,1936.0,4.37741608]
[1770969164195,4.49885578,1936.9,1936.3,4.37741608]
[1770969164402,4.50309003,1937.0,1936.3,4.38378405]
[1770969165204,4.50309003,1937.0,1936.4,4.37741608]
[1770969166092,0.00423425,1937.0,1936.4,4.37741608]
[1770969166699,4.49885578,1937.1,1936.6,4.37741608]
[1770969167003,4.49885578,1937.3,1936.6,4.37741608]
[1770969167195,4.49885578,1937.5,1936.9,4.37741608]
[1770969167395,4.49885578,1937.7,1936.9,4.37741608]
[1770969167796,4.50391847,1937.7,1936.9,4.37741608]
[1770969172113,4.50391847,1937.7,1936.9,4.37741608]
[1770969172316,4.50391847,1937.7,1936.6,4.37741608]
[1770969173013,4.50391847,1937.7,1936.9,2.30554624]
[1770969173205,4.50391847,1937.7,1937.0,4.37741608]
[1770969173511,6.80946471,1937.7,1936.8,0.373]
[1770969173721,4.49885578,1937.6,1936.8,4.75041608]
[1770969175218,4.49885578,1937.6,1936.8,0.373]
[1770969175421,4.49885578,1937.6,1936.4,4.37741608]
[1770969178324,4.49885578,1937.6,1936.6,4.37741608]
[1770969178925,4.49885578,1937.6,1936.9,4.37741608]
[1770969182228,0.00506269,1937.7,1937.0,4.10962109]
[1770969182727,3.98822522,1937.7,1937.0,4.10962109]
[1770969183022,5.33435076,1938.1,1937.4,4.10962109]
[1770969183428,3.98316253,1938.0,1937.4,4.10962109]
[1770969184021,3.98746043,1938.0,1937.4,4.10962109]
[1770969185229,0.0042979,1938.0,1937.4,4.10962109]
[1770969185824,3.98746043,1938.0,1937.4,4.10962109]
[1770969186824,3.98746043,1938.0,1937.1,4.10962109]
[1770969188125,3.98746043,1938.0,1936.8,4.10962109]
[1770969189426,3.98316253,1937.8,1936.8,4.10962109]
[1770969189628,3.98316253,1937.8,1936.9,4.10962109]
[1770969190527,3.98316253,1937.9,1937.2,4.10962109]
[1770969191636,0.0042979,1938.0,1937.2,4.10962109]
[1770969192037,3.98746043,1938.0,1937.2,4.10962109]
[1770969193729,3.98746043,1938.0,1937.0,4.10962109]
[1770969193933,3.98316253,1937.8,1937.0,4.10962109]
[1770969194536,3.98316253,1937.8,1936.8,4.10962109]
[1770969198334,3.98316253,1937.6,1936.7,4.10962109]
[1770969202441,3.98316253,1937.4,1936.5,4.10962109]
[1770969203441,3.98316253,1937.6,1936.9,4.10962109]
[1770969204142,3.98316253,1937.6,1936.6,4.10962109]
[1770969204340,3.98316253,1937.4,1936.6,4.10962109]
[1770969209747,3.98316253,1937.7,1936.6,4.10962109]
[1770969213148,4.21561966,1937.5,1936.6,4.10962109]
[1770969218556,4.21561966,1937.5,1936.5,7.7184857]
[1770969218557,4.21561966,1937.5,1936.7,4.04537427]
[1770969226065,4.21561966,1937.5,1936.8,4.04537427]
[1770969226764,4.216997,1937.7,1936.8,4.04537427]
[1770969226963,4.216997,1937.5,1936.8,4.04537427]
[1770969227466,4.216997,1937.6,1936.8,4.04537427]
[1770969227663,4.216997,1937.6,1936.9,4.04537427]
[1770969231268,4.216997,1937.6,1936.9,10.23414578]
[1770969231469,4.216997,1937.6,1937.0,4.04537427]
[1770969237171,4.216997,1937.6,1937.1,3.89285037]
[1770969237672,4.216997,1937.6,1936.9,10.08162188]
[1770969237874,4.216997,1937.6,1937.0,3.89285037]
[1770969239174,4.216997,1937.6,1937.1,3.89285037]
[1770969240269,4.216997,1937.6,1937.2,3.89285037]
[1770969241474,4.15348538,1937.8,1937.2,3.89285037]
[1770969241677,4.15348538,1937.6,1937.2,3.89285037]
[1770969243972,3.07624103,1938.0,1937.2,3.89285037]
[1770969244172,4.15348538,1937.9,1937.2,3.89285037]
[1770969244373,8.72087402,1937.8,1937.2,3.89285037]
[1770969244575,4.15348538,1937.7,1937.2,3.89285037]
[1770969245377,4.15348538,1937.8,1937.2,3.89285037]
[1770969246373,4.15778328,1938.0,1937.5,3.95127344]
[1770969246972,0.0042979,1938.0,1937.5,3.95127344]
[1770969247177,0.0042979,1938.0,1937.6,3.95127344]
[1770969247481,4.15348538,1938.4,1937.8,3.95127344]
[1770969247883,4.15348538,1938.9,1938.1,3.95127344]
[1770969248171,4.15348538,1938.9,1938.2,3.95127344]
[1770969248472,4.16008588,1938.9,1938.2,0.0040052]
[1770969250070,4.16008588,1938.9,1938.2,3.95527864]
[1770969250973,4.16008588,1938.9,1938.2,0.0040052]
[1770969251168,4.54644153,1938.8,1937.7,3.95127344]
[1770969251378,4.15348538,1938.7,1937.7,3.95127344]
[1770969251982,4.15348538,1938.7,1937.8,3.95127344]
[1770969252276,4.15348538,1938.7,1937.9,3.95127344]
[1770969252479,4.15348538,1938.7,1938.0,3.95127344]
[1770969253085,4.16008588,1938.9,1938.0,3.95127344]
[1770969254573,4.16008588,1938.9,1938.1,3.95127344]
[1770969255375,4.16008588,1938.9,1938.2,3.95127344]
[1770969255571,0.0066005,1938.9,1938.2,3.95127344]
[1770969256176,4.15348538,1939.3,1938.3,3.95127344]
[1770969256474,4.15348538,1939.3,1938.4,3.95127344]
[1770969257281,4.15869172,1939.3,1938.4,3.95127344]
[1770969258181,0.00520634,1939.3,1938.5,3.95127344]
[1770969258480,4.15869172,1939.3,1938.5,3.95127344]
[1770969259074,4.15348538,1939.7,1938.5,3.95127344]
[1770969259280,4.15348538,1939.7,1938.6,3.95127344]
[1770969259681,4.15348538,1939.7,1938.8,3.95127344]
[1770969259884,4.15348538,1939.7,1938.5,3.95127344]
[1770969260179,4.15348538,1939.4,1938.5,3.95127344]
[1770969261376,4.15348538,1939.4,1938.0,3.95127344]
[1770969261876,4.15348538,1939.4,1938.1,3.95127344]
[1770969262680,4.15348538,1939.2,1938.1,3.95127344]
[1770969263983,4.15348538,1939.1,1938.1,3.95127344]
[1770969264189,4.15348538,1939.1,1937.9,3.95127344]
[1770969264486,6.45534633,1938.9,1937.8,0.00551687]
[1770969264682,4.15348538,1938.8,1937.8,0.00551687]
[1770969265486,4.15348538,1938.8,1937.8,3.95679031]
[1770969267187,2.3020549,1938.7,1937.8,3.95679031]
[1770969267393,4.15348538,1938.6,1937.8,3.95679031]
[1770969267791,4.15348538,1938.4,1937.8,0.00551687]
[1770969271799,4.15348538,1938.4,1937.8,3.86291398]
[1770969275708,4.00742819,1938.9,1937.8,3.86291398]
[1770969277316,4.00742819,1938.9,1937.9,4.02197699]
[1770969281319,0.25808,1939.0,1938.2,4.02197699]
[1770969281320,4.00742819,1939.0,1938.2,4.02197699]
[1770969282815,3.32994313,1939.5,1938.2,4.02197699]
[1770969283012,4.00742819,1939.3,1938.5,4.02197699]
[1770969285117,4.00742819,1939.6,1938.8,4.02197699]
[1770969287135,4.00742819,1939.6,1938.6,4.02197699]
[1770969287817,4.26540819,1939.6,1938.4,4.02197699]
[1770969290823,4.26540819,1939.6,1938.5,2.3020549]
[1770969291022,4.00742819,1939.6,1938.6,4.02197699]
[1770969292422,4.00742819,1939.6,1938.9,4.02197699]
[1770969293425,4.00742819,1939.6,1938.5,4.02197699]
[1770969294216,4.00742819,1939.6,1938.7,4.02197699]
[1770969299428,4.00742819,1939.6,1938.8,4.02197699]
[1770969300516,4.07864276,1939.7,1939.0,3.81599338]
[1770969301325,0.00491718,1939.7,1939.0,3.81599338]
[1770969301517,0.00491718,1939.7,1939.1,3.81599338]
[1770969304130,4.07864276,1939.7,1939.1,3.81599338]
[1770969304835,0.00491718,1939.7,1939.1,3.81599338]
[1770969305740,4.07864276,1939.7,1939.1,3.81599338]
[1770969306829,0.00491718,1939.7,1939.1,3.81599338]
[1770969307034,0.00491718,1939.7,1939.2,3.81599338]
[1770969307234,0.00491718,1939.7,1939.2,3.8211381]
[1770969308235,4.07864276,1939.7,1939.2,3.8211381]
[1770969310435,4.07864276,1939.7,1939.0,6.18877151]
[1770969310637,4.07372558,1939.6,1938.8,3.81599338]
[1770969311342,4.07372558,1939.6,1938.9,3.81599338]
[1770969311641,4.07372558,1939.6,1938.9,0.00467897]
[1770969312243,4.07372558,1939.6,1938.9,3.82067235]
[1770969312642,4.07372558,1939.6,1939.0,3.81599338]
[1770969314442,0.00491718,1939.7,1939.2,3.81599338]
[1770969314645,4.07864276,1939.7,1939.2,3.81599338]
[1770969314845,0.00491718,1939.7,1939.2,3.81599338]
[1770969315245,4.07864276,1939.7,1939.1,3.81599338]
[1770969315750,4.07864276,1939.7,1939.0,16.887]
[1770969316051,4.07864276,1939.7,1939.0,20.70299338]
[1770969316548,4.07864276,1939.7,1938.9,0.00467897]
[1770969316944,4.07372558,1939.5,1938.9,0.00467897]
[1770969318853,4.07372558,1939.5,1938.9,3.82067235]
[1770969321650,4.07372558,1939.5,1938.9,0.00467897]
[1770969324054,4.50807371,1939.4,1938.5,3.81599338]
[1770969324256,4.07372558,1939.3,1938.5,3.81599338]
[1770969324654,4.07372558,1939.3,1938.4,3.81599338]
[1770969325154,4.07372558,1939.3,1938.4,3.82022239]
[1770969325549,4.07372558,1939.1,1938.4,0.00422901]
[1770969326154,4.07372558,1939.1,1938.1,3.81599338]
[1770969327152,4.07372558,1939.1,1938.1,3.82138515]
[1770969327860,4.07372558,1938.9,1938.1,0.00539177]
[1770969328257,3.32998313,1939.1,1938.1,0.00539177]
[1770969328258,4.07372558,1938.7,1938.1,0.00539177]
[1770969329162,4.07372558,1938.7,1938.1,3.82138515]
[1770969330264,4.07372558,1938.7,1938.1,0.00539177]
[1770969330463,4.07372558,1938.7,1937.7,3.91666242]
[1770969331365,4.07372558,1938.7,1937.7,3.92221546]
[1770969338170,4.07372558,1938.7,1937.9,4.16322329]
[1770969338470,4.10685972,1938.8,1938.0,4.16322329]
[1770969341574,4.10685972,1938.8,1937.8,4.16322329]
[1770969343274,4.10685972,1938.8,1937.7,21.17177633]
[1770969343775,4.10685972,1938.8,1937.7,4.16877633]
[1770969344269,4.10685972,1938.6,1937.7,4.16877633]
[1770969344468,4.10685972,1938.6,1937.7,0.00555304]
[1770969344672,4.10685972,1938.6,1937.7,4.16877633]
[1770969345370,4.10685972,1938.6,1937.8,4.16322329]
[1770969346275,4.10685972,1938.6,1937.9,4.16322329]
[1770969348683,4.10685972,1938.6,1937.8,4.16322329]
[1770969349375,4.10685972,1938.6,1937.9,4.16322329]
[1770969354483,4.10685972,1938.6,1938.0,4.16322329]
[1770969358686,4.10685972,1938.4,1937.9,6.18877151]
[1770969358985,4.10685972,1938.4,1937.8,10.3519948]
[1770969359680,4.10685972,1938.4,1937.9,4.16322329]
[1770969361687,4.10685972,1938.4,1937.9,6.18877151]
[1770969361885,4.10685972,1938.4,1937.8,6.18877151]
[1770969362088,3.93267149,1938.2,1937.4,11.55265466]
[1770969362289,3.93267149,1938.2,1937.5,3.83416896]
[1770969362990,3.93721292,1938.2,1937.5,3.84066414]
[1770969364084,0.00454143,1938.2,1937.5,3.84066414]
[1770969364284,0.00454143,1938.2,1937.6,3.83416896]
[1770969370388,7.00461462,1938.6,1937.6,3.83416896]
[1770969370690,3.93267149,1938.6,1937.8,3.83416896]
[1770969371491,3.93644318,1938.6,1937.8,3.83416896]
[1770969373586,0.00377169,1938.6,1937.8,3.83416896]
[1770969373994,3.93644318,1938.6,1937.8,3.83416896]
[1770969379394,3.93644318,1938.6,1937.6,10.02002364]
[1770969379395,0.00377169,1938.6,1938.0,3.83416896]
[1770969379693,3.93267149,1939.0,1938.1,3.83416896]
[1770969380491,3.93676151,1939.0,1938.1,3.83416896]
[1770969390502,3.93267149,1938.8,1938.1,3.83416896]
[1770969393099,4.1532085,1938.6,1938.1,3.83416896]
[1770969400908,3.95169975,1938.7,1938.1,3.83416896]
[1770969401802,3.95169975,1938.7,1938.3,4.0426668]
[1770969402810,3.95169975,1938.9,1938.3,4.0426668]
[1770969403509,3.95169975,1938.7,1938.3,4.0426668]
[1770969405316,4.53173552,1939.0,1938.3,4.0426668]
[1770969405609,3.95169975,1938.8,1938.3,4.0426668]
[1770969406110,3.95169975,1938.9,1938.3,4.0426668]